[Event "Superbet Rapid Poland 2022"]
[Site "Warsaw"]
[Date "2022.05.21"]
[Round "9.4"]
[White "Rapport, Richard"]
[Black "Anand, Viswanathan"]
[Result "1-0"]
[ECO "C47"]
[WhiteElo "2776"]
[BlackElo "2751"]
[Annotator "TA"]
[PlyCount "71"]
[EventDate "2022.05.19"]
[EventType "tourn"]
[EventCountry "POL"]
[SourceTitle "playchess.com"]
[Source "ChessBase"]
[SourceQuality "1"]
[TimeControl "1500+10"]

{[%evp 9,71,27,27,27,27,20,12,8,28,1,20,-30,-4,-27,-22,-33,-22,-27,-22,-15,-28,-32,15,0,-10,0,37,-5,3,0,0,0,45,45,79,79,99,49,104,105,127,26,133,155,148,167,153,163,149,70,66,58,68,68,60,45,45,0,0,0,295,21,29983,29984]} 1. e4 {[%emt 0:00:03]} e5 {[%emt 0:00:01]} 2. Nf3 {[%emt 0:00:03]} Nf6 {[%emt 0:00:02]} 3. Nc3 {[%emt 0:00:03]} Nc6 {[%emt 0:00:04]} 4. a4 {[%emt 0:00:02]} d6 {[%emt 0:00:41]} 5. d4 {[%emt 0:00:20]} exd4 {[%emt 0:00:04]} 6. Nxd4 {[%emt 0:00:01] C47: Scotch Four Knights and Four Knights with 4 g3.} Be7 {[%emt 0:00:02] [#]} 7. Be2 $146 {[%emt 0:00:20]} ({Predecessor:} 7. Nxc6 bxc6 8. Be2 O-O 9. O-O a5 10. Be3 d5 11. e5 Nd7 12. f4 Re8 13. Bf2 {1-0 (35) Van Woerden,H-Rasmussen,P ICCF corr 1994}) 7... O-O {[%emt 0:00:11]} 8. O-O {[%emt 0:00:03] The position is equal.} Re8 {[%emt 0:00:10]} 9. a5 {[%emt 0:00:57]} Nb4 {[%emt 0:00:23]} 10. f4 {[%emt 0:01:22]} (10. Bc4 $142) 10... c5 {[%emt 0:01:21]} 11. Nb3 {[%emt 0:01:51]} Bf8 {[%emt 0:03:38]} 12. Bf3 {[%emt 0:00:21]} d5 {[%emt 0:00:40][%cal Rd5e4]} 13. e5 {[%emt 0:02:11]} (13. exd5 c4 14. Nd4 Bc5 $17) 13... Bf5 $1 {[%emt 0:00:26]} 14. Rf2 {[%emt 0:00:04]} (14. exf6 $2 Bxc2 15. Qd2 Bxb3 16. fxg7 Bxg7 $19) 14... d4 $1 {[%emt 0:03:41]} 15. Na4 {[%emt 0:00:36]} (15. exf6 dxc3 16. bxc3 Nxc2 17. Rxc2 Qxd1+ 18. Bxd1 Re1+ 19. Kf2 Rxd1 $17) 15... Nd7 {[%emt 0:00:39]} (15... d3 $15 16. c4 (16. exf6 Nxc2 17. Bd2 Nxa1 $17) (16. Bxb7 $2 Ng4 $19) (16. Nbxc5 Nxc2 17. Rb1 Rc8 $19) 16... Nc2) 16. Bxb7 {[%emt 0:03:56]} Rb8 {[%emt 0:00:06]} 17. a6 {[%emt 0:00:02]} d3 {[%emt 0:02:57]} 18. c4 {[%emt 0:03:03]} Nb6 {[%emt 0:02:25]} 19. Na5 {[%emt 0:03:59]} Nxa4 {[%emt 0:01:13]} 20. Qxa4 {[%emt 0:01:02]} Bd7 {[%emt 0:04:18]} 21. Qd1 {[%emt 0:00:02]} Re6 {[%emt 0:00:33]} 22. Bd2 {[%emt 0:01:18]} Nxa6 {[%emt 0:01:21]} 23. Bd5 {[%emt 0:00:03]} (23. Rf3 $16) 23... Reb6 {[%emt 0:00:19]} (23... Rxb2 $14 24. Bxe6 Bxe6) 24. Bc3 $16 {[%emt 0:00:25] White is more active.} Nb4 {[%emt 0:00:23]} 25. f5 {[%emt 0:02:03]} (25. Bxb4 $16 Rxb4 26. Qxd3) 25... Nxd5 {[%emt 0:00:34]} (25... Ra6 $1 $11) 26. cxd5 {[%emt 0:00:02] aiming for Nc4.} Bb5 {[%emt 0:00:01] Prevents Nc4.} 27. Qf3 {[%emt 0:00:39] Threatens to win with f6.} c4 {[%emt 0:00:08]} 28. Kh1 {[%emt 0:00:26]} f6 {[%emt 0:00:30] [#]} 29. exf6 {[%emt 0:00:27]} (29. Nc6 $1 $16 {[%cal Rc6d8]} Bxc6 30. dxc6) 29... Rxf6 $14 {[%emt 0:00:31]} 30. Nc6 $36 {[%emt 0:00:31][%mdl 2048] White has the initiative.} Bxc6 {[%emt 0:00:04]} 31. dxc6 {[%emt 0:00:01]} Rf7 {[%emt 0:00:11]} 32. Ra4 {[%emt 0:00:46]} Rb5 $1 {[%emt 0:00:44]} ({Weaker is} 32... Bc5 33. Rf1 $16) 33. f6 {[%emt 0:01:26]} (33. Rxc4 $5 {[%cal Rf5f6]} Rbxf5 34. Qxf5 Rxf5 35. Rxf5 $14) 33... Rc5 {[%emt 0:00:14]} (33... Bc5 $2 34. Rf1 g6 35. Rxc4 $18) 34. Qg4 {[%emt 0:00:20]} h5 $2 {[%emt 0:00:25][%mdl 8192] [#]} (34... Rxc6 $11 35. fxg7 (35. Rxc4 h5 $15) 35... Rxf2 36. gxf8=N+ (36. gxf8=B+ Rg6 $11) (36. gxf8=Q+ Kxf8 37. Bb4+ Rd6 $18) 36... Kxf8 37. Bb4+ Rd6) 35. Qe6 $2 {[%emt 0:00:18]} (35. Qg6 $1 $18 {[%cal Of6g7] White threatens fxg7! and mate.} Qc7 36. Ra6) 35... Qd6 $2 {[%emt 0:00:06][%mdl 8192] [#]} (35... Qd5 $11 36. Qxd5 Rxd5) 36. Qxf7+ $3 {[%emt 0:00:03][%mdl 512] Weighted Error Value: White=0.36/Black=0.48} 1-0

[Event "Superbet Rapid Poland 2022"]
[Site "Warsaw"]
[Date "2022.05.21"]
[Round "9.5"]
[White "Wojtaszek, Radoslaw"]
[Black "So, Wesley"]
[Result "1/2-1/2"]
[ECO "E05"]
[WhiteElo "2696"]
[BlackElo "2766"]
[Annotator "TA"]
[PlyCount "91"]
[EventDate "2022.05.19"]
[EventType "tourn"]
[EventCountry "POL"]
[SourceTitle "playchess.com"]
[Source "ChessBase"]
[SourceQuality "1"]
[TimeControl "1500+10"]

{[%evp 23,91,6,17,18,15,9,9,7,11,0,8,0,0,0,0,0,0,0,12,0,4,0,0,0,7,0,0,0,0,0,0,0,0,0,22,17,12,13,35,21,46,20,10,10,20,20,22,20,38,45,58,41,60,60,60,60,60,60,60,60,62,45,45,32,60,47,49,49,60,60]} 1. d4 {[%emt 0:00:02]} Nf6 {[%emt 0:00:05]} 2. c4 {[%emt 0:00:02]} e6 {[%emt 0:00:03]} 3. Nf3 {[%emt 0:00:02]} d5 {[%emt 0:00:02]} 4. g3 {[%emt 0:00:02]} Be7 {[%emt 0:00:08]} 5. Bg2 {[%emt 0:00:03]} O-O {[%emt 0:00:03]} 6. O-O {[%emt 0:00:04]} dxc4 {[%emt 0:00:02]} 7. Qc2 {[%emt 0:00:07]} a6 {[%emt 0:00:04]} 8. a4 {[%emt 0:00:03]} Bd7 {[%emt 0:00:01][%cal Bc8d7,Bd7c6,Bc6d5][%mdl 32]} 9. Qxc4 {[%emt 0:00:05]} Bc6 {[%emt 0:00:02]} 10. Bg5 {[%emt 0:00:19]} Bd5 {[%emt 0:00:15]} 11. Qc2 {[%emt 0:00:13]} Be4 {[%emt 0:00:04]} 12. Qc1 {[%emt 0:00:14]} h6 {[%emt 0:00:04]} 13. Bxf6 {[%emt 0:00:07] E05: Open Catalan: 5 Nf3 Be7.} Bxf6 {[%emt 0:00:05]} 14. Nbd2 {[%emt 0:00:41]} Bxf3 {[%emt 0:00:03]} 15. Nxf3 {[%emt 0:01:53] The position is equal.} a5 {[%emt 0:00:05]} 16. Rd1 {[%emt 0:00:04]} Na6 {[%emt 0:03:15]} 17. Qc4 {[%emt 0:00:24]} c6 {[%emt 0:00:14] Against Qb5} 18. Rac1 {[%emt 0:00:20]} Qb6 {[%emt 0:02:16]} 19. e3 {[%emt 0:00:40]} Rfd8 {[%emt 0:00:13]} 20. Nd2 {[%emt 0:00:36] [#]} Rd7 $146 {[%emt 0:01:14]} ({Predecessor:} 20... Nb4 21. Qe2 Nd5 22. Nc4 Qb4 23. Rd3 Nb6 24. Nd2 Nd5 25. Rb3 Qxa4 26. Rxb7 Rdb8 {1-0 (42) Michael,D (2298)-Rosenhek,M (2149) ICCF email 2010}) 21. Qc3 {[%emt 0:04:34]} Nb4 {[%emt 0:00:09]} 22. Nc4 {[%emt 0:00:02]} Qc7 {[%emt 0:00:02]} 23. Qe1 {[%emt 0:00:49]} Rad8 {[%emt 0:00:33]} 24. Be4 {[%emt 0:00:20]} g6 {[%emt 0:03:30]} 25. Kg2 {[%emt 0:00:17]} e5 {[%emt 0:01:14]} 26. dxe5 {[%emt 0:01:24]} Bxe5 {[%emt 0:00:02]} 27. Rxd7 {[%emt 0:02:12]} Rxd7 {[%emt 0:00:43]} 28. b3 {[%emt 0:00:12]} Kg7 {[%emt 0:02:25]} 29. Rd1 {[%emt 0:00:37]} Rxd1 30. Qxd1 {[%emt 0:00:02]} b6 {[%emt 0:05:18]} 31. f4 {[%emt 0:01:07]} Bf6 {[%emt 0:00:10]} 32. Qd6 {[%emt 0:01:41]} Qxd6 {[%emt 0:00:45]} 33. Nxd6 $11 {[%emt 0:00:01][%mdl 4096] [#] Endgame aiming for Ne8+. KBN-KBN} Be7 {[%emt 0:00:53]} 34. Nc4 {[%emt 0:00:11]} Bc5 {[%emt 0:00:27]} 35. Kf3 {[%emt 0:00:16]} f5 {[%emt 0:00:41]} 36. Bb1 {[%emt 0:00:02] White is slightly better.} Nd5 {[%emt 0:00:21]} 37. e4 {[%emt 0:00:41]} fxe4+ {[%emt 0:00:42]} 38. Bxe4 {[%emt 0:00:02]} Ne7 {[%emt 0:00:08]} 39. Ne5 {[%emt 0:03:14]} Bd4 {[%emt 0:00:08]} 40. Nxc6 {[%emt 0:02:36]} Nxc6 {[%emt 0:00:03]} 41. Bxc6 $14 {[%emt 0:00:01] KB-KB} g5 {[%emt 0:00:20]} 42. Ke4 {[%emt 0:00:07]} Bg1 {[%emt 0:00:05]} 43. fxg5 {[%emt 0:00:14]} hxg5 {[%emt 0:00:03]} 44. h4 {[%emt 0:00:01]} gxh4 {[%emt 0:00:02]} 45. gxh4 {[%emt 0:00:01]} Kh6 {[%emt 0:00:01]} 46. Kf3 {[%emt 0:00:02] Weighted Error Value: White=0.05 (flawless) /Black=0.05 (flawless)} 1/2-1/2